[Event "Early-Titled-Tuesday-Blitz-June-18-2024"]
[Site "Chess.com"]
[Date "2024.06.18"]
[Round "3"]
[White "MalyDominator"]
[Black "Niteshch"]
[Result "1-0"]
[WhiteElo "2586"]
[BlackElo "2322"]
[TimeControl "180+1"]
[EndTime "8:28:01 PDT"]
[Termination "MalyDominator won by resignation"]

1. e4 {[%clk 0:03:00.9]} 1... c6 {[%clk 0:02:59.1]} 2. d4 {[%clk 0:02:53.8]}
2... d5 {[%clk 0:02:59.2]} 3. exd5 {[%clk 0:02:54.7]} 3... cxd5 {[%clk
0:02:59.1]} 4. Bd3 {[%clk 0:02:55.3]} 4... Nc6 {[%clk 0:02:59.4]} 5. c3 {[%clk
0:02:55.8]} 5... Nf6 {[%clk 0:02:59.6]} 6. h3 {[%clk 0:02:55]} 6... g6 {[%clk
0:02:58.8]} 7. Nf3 {[%clk 0:02:55.4]} 7... Bg7 {[%clk 0:02:57.9]} 8. O-O {[%clk
0:02:55]} 8... Bf5 {[%clk 0:02:58.2]} 9. Be2 {[%clk 0:02:51.8]} 9... O-O {[%clk
0:02:52.7]} 10. Be3 {[%clk 0:02:51.6]} 10... Ne4 {[%clk 0:02:51.1]} 11. Re1
{[%clk 0:02:51.4]} 11... e5 {[%clk 0:02:49]} 12. dxe5 {[%clk 0:02:50.7]} 12...
Nxe5 {[%clk 0:02:49.9]} 13. Nxe5 {[%clk 0:02:48.1]} 13... Bxe5 {[%clk
0:02:50.8]} 14. Nd2 {[%clk 0:02:47.9]} 14... d4 {[%clk 0:02:03.2]} 15. cxd4
{[%clk 0:02:29.3]} 15... Bxd4 {[%clk 0:01:59.7]} 16. Nxe4 {[%clk 0:02:17.6]}
16... Bxe3 {[%clk 0:01:50.1]} 17. Nd6 {[%clk 0:02:05.5]} 17... Bb6 {[%clk
0:01:02.9]} 18. Nxf5 {[%clk 0:02:04.5]} 18... gxf5 {[%clk 0:01:03.2]} 19. Bd3
{[%clk 0:01:54.9]} 19... Qd4 {[%clk 0:00:52.4]} 20. Qf3 {[%clk 0:01:54.6]} 20...
Rad8 {[%clk 0:00:43]} 21. Bxf5 {[%clk 0:01:53.1]} 21... Qxb2 {[%clk 0:00:43.1]}
22. Rab1 {[%clk 0:01:48.1]} 22... Qxa2 {[%clk 0:00:37.6]} 23. Rxb6 {[%clk
0:01:14.8]} 23... axb6 {[%clk 0:00:38.5]} 24. Qh5 {[%clk 0:01:14.9]} 24... Kg7
{[%clk 0:00:16.5]} 25. Qg5+ {[%clk 0:01:14.4]} 25... Kh8 {[%clk 0:00:15.8]} 26.
Qh6 {[%clk 0:01:14.6]} 1-0

[Event "Early-Titled-Tuesday-Blitz-June-18-2024"]
[Site "Chess.com"]
[Date "2024.06.18"]
[Round "3"]
[White "Road2GM3000"]
[Black "SpongeBob_03"]
[Result "1-0"]
[WhiteElo "2470"]
[BlackElo "2250"]
[TimeControl "180+1"]
[EndTime "8:28:06 PDT"]
[Termination "Road2GM3000 won on time"]

1. d4 {[%clk 0:02:59.8]} 1... Nf6 {[%clk 0:02:58]} 2. c4 {[%clk 0:03:00.2]} 2...
e6 {[%clk 0:02:56.8]} 3. Nc3 {[%clk 0:03:00]} 3... Bb4 {[%clk 0:02:56.4]} 4. Nf3
{[%clk 0:03:00.7]} 4... c5 {[%clk 0:02:48.1]} 5. g3 {[%clk 0:02:57.4]} 5... Nc6
{[%clk 0:02:45.4]} 6. Bg2 {[%clk 0:02:57]} 6... Qa5 {[%clk 0:02:38.2]} 7. O-O
{[%clk 0:02:41]} 7... Bxc3 {[%clk 0:02:31.3]} 8. bxc3 {[%clk 0:02:40.5]} 8...
Qxc3 {[%clk 0:02:31.4]} 9. d5 {[%clk 0:02:40.1]} 9... Qxa1 {[%clk 0:02:23.4]}
10. dxc6 {[%clk 0:02:40.2]} 10... bxc6 {[%clk 0:02:14.6]} 11. Qb3 {[%clk
0:02:32.4]} 11... Ba6 {[%clk 0:01:53.5]} 12. Ba3 {[%clk 0:02:12.4]} 12... Qxf1+
{[%clk 0:01:30.2]} 13. Kxf1 {[%clk 0:02:11.8]} 13... O-O {[%clk 0:01:23.1]} 14.
Bxc5 {[%clk 0:02:12.3]} 14... Rfb8 {[%clk 0:01:22.1]} 15. Qc2 {[%clk 0:02:09.7]}
15... d5 {[%clk 0:01:18.3]} 16. Ne5 {[%clk 0:02:02.2]} 16... Rc8 {[%clk
0:01:06.8]} 17. Qa4 {[%clk 0:01:34.8]} 17... Bb7 {[%clk 0:01:04.5]} 18. Bxa7
{[%clk 0:01:25]} 18... Ne8 {[%clk 0:00:30.3]} 19. Nd7 {[%clk 0:01:23.5]} 19...
c5 {[%clk 0:00:08.7]} 20. Nb6 {[%clk 0:01:22.9]} 20... Bc6 {[%clk 0:00:08.6]}
21. Qa5 {[%clk 0:01:21.9]} 21... Rxa7 {[%clk 0:00:05.9]} 22. Qxa7 {[%clk
0:01:21.2]} 22... Nd6 {[%clk 0:00:03.5]} 23. Nxc8 {[%clk 0:01:20.7]} 23... Nxc8
{[%clk 0:00:03.1]} 24. Qc7 {[%clk 0:01:21.4]} 1-0

[Event "Early-Titled-Tuesday-Blitz-June-18-2024"]
[Site "Chess.com"]
[Date "2024.06.18"]
[Round "3"]
[White "A4RookA3"]
[Black "DenishevM"]
[Result "0-1"]
[WhiteElo "2440"]
[BlackElo "2650"]
[TimeControl "180+1"]
[EndTime "8:28:11 PDT"]
[Termination "DenishevM won by resignation"]

1. d4 {[%clk 0:03:00.9]} 1... Nf6 {[%clk 0:03:00]} 2. Bf4 {[%clk 0:03:00.2]}
2... e6 {[%clk 0:03:00.6]} 3. e3 {[%clk 0:02:59.8]} 3... d5 {[%clk 0:03:01]} 4.
Nf3 {[%clk 0:02:59.4]} 4... Bd6 {[%clk 0:03:01.7]} 5. Nbd2 {[%clk 0:02:59.5]}
5... c5 {[%clk 0:03:01.9]} 6. dxc5 {[%clk 0:02:59.3]} 6... Bxc5 {[%clk
0:03:01.4]} 7. c4 {[%clk 0:02:59.6]} 7... O-O {[%clk 0:03:01]} 8. Bd3 {[%clk
0:03:00]} 8... Nc6 {[%clk 0:02:59.9]} 9. O-O {[%clk 0:02:59.9]} 9... Qe7 {[%clk
0:03:00]} 10. Rc1 {[%clk 0:02:54.4]} 10... dxc4 {[%clk 0:02:53.2]} 11. Nxc4
{[%clk 0:02:53.2]} 11... b6 {[%clk 0:02:42.7]} 12. Qe2 {[%clk 0:02:41.1]} 12...
Bb7 {[%clk 0:02:41.4]} 13. Rfd1 {[%clk 0:02:41.3]} 13... Rfd8 {[%clk 0:02:39.2]}
14. a3 {[%clk 0:02:37.4]} 14... a5 {[%clk 0:02:38.7]} 15. Bb1 {[%clk 0:02:13]}
15... Ba6 {[%clk 0:02:34.6]} 16. Bd3 {[%clk 0:02:10.5]} 16... Nh5 {[%clk
0:02:31.4]} 17. Bg5 {[%clk 0:02:07.5]} 17... f6 {[%clk 0:02:30.9]} 18. Bh4
{[%clk 0:02:07.9]} 18... g5 {[%clk 0:02:30.8]} 19. Bg3 {[%clk 0:01:43.8]} 19...
Nxg3 {[%clk 0:02:30.6]} 20. hxg3 {[%clk 0:01:44.7]} 20... Rd7 {[%clk 0:02:31.1]}
21. Qc2 {[%clk 0:01:31.1]} 21... Rad8 {[%clk 0:02:28.3]} 22. Be2 {[%clk
0:01:28.7]} 22... g4 {[%clk 0:02:21.7]} 23. Nfd2 {[%clk 0:00:58.7]} 23... f5
{[%clk 0:02:20.3]} 24. Nb3 {[%clk 0:00:58.2]} 24... h5 {[%clk 0:02:08.4]} 25.
Rxd7 {[%clk 0:00:52.2]} 25... Rxd7 {[%clk 0:02:06.4]} 26. Rd1 {[%clk 0:00:45.8]}
26... Rxd1+ {[%clk 0:02:00.4]} 27. Qxd1 {[%clk 0:00:46.7]} 27... h4 {[%clk
0:01:47.7]} 28. gxh4 {[%clk 0:00:32.8]} 28... g3 {[%clk 0:01:48.6]} 29. Nxc5
{[%clk 0:00:28.4]} 29... Qxc5 {[%clk 0:01:47.8]} 30. b3 {[%clk 0:00:02.7]} 30...
gxf2+ {[%clk 0:01:47]} 31. Kxf2 {[%clk 0:00:03.6]} 31... f4 {[%clk 0:01:42.9]}
32. Qd6 {[%clk 0:00:01.9]} 32... fxe3+ {[%clk 0:01:39.2]} 33. Kg3 {[%clk
0:00:02.1]} 33... Qxd6+ {[%clk 0:01:36.2]} 34. Nxd6 {[%clk 0:00:03]} 34... Bxe2
{[%clk 0:01:36.8]} 0-1

[Event "Early-Titled-Tuesday-Blitz-June-18-2024"]
[Site "Chess.com"]
[Date "2024.06.18"]
[Round "3"]
[White "pavelalexandru07"]
[Black "InadaC"]
[Result "1-0"]
[WhiteElo "2458"]
[BlackElo "2219"]
[TimeControl "180+1"]
[EndTime "8:28:16 PDT"]
[Termination "pavelalexandru07 won by resignation"]

1. e4 {[%clk 0:03:00.9]} 1... e6 {[%clk 0:02:57.1]} 2. d4 {[%clk 0:03:00.9]}
2... d5 {[%clk 0:02:56.7]} 3. Nc3 {[%clk 0:03:01.5]} 3... Bb4 {[%clk 0:02:55.7]}
4. e5 {[%clk 0:03:01.5]} 4... c5 {[%clk 0:02:55.8]} 5. a3 {[%clk 0:03:02]} 5...
Bxc3+ {[%clk 0:02:55.7]} 6. bxc3 {[%clk 0:03:02.6]} 6... Qa5 {[%clk 0:02:55.6]}
7. Bd2 {[%clk 0:02:58.5]} 7... Nc6 {[%clk 0:02:52.3]} 8. h4 {[%clk 0:02:55.4]}
8... Nge7 {[%clk 0:02:51.9]} 9. h5 {[%clk 0:02:55]} 9... h6 {[%clk 0:02:51.6]}
10. Qg4 {[%clk 0:02:48.2]} 10... Nf5 {[%clk 0:02:48.4]} 11. Bd3 {[%clk
0:02:43.1]} 11... Kf8 {[%clk 0:02:48.5]} 12. f4 {[%clk 0:02:14.7]} 12... Qb6
{[%clk 0:02:37.8]} 13. dxc5 {[%clk 0:02:14.5]} 13... Qxc5 {[%clk 0:02:28.5]} 14.
Qf3 {[%clk 0:02:14.6]} 14... d4 {[%clk 0:02:24.2]} 15. c4 {[%clk 0:02:04.3]}
15... a5 {[%clk 0:02:20]} 16. Ne2 {[%clk 0:01:54.7]} 16... Bd7 {[%clk
0:02:18.9]} 17. g4 {[%clk 0:01:53.9]} 17... Ne3 {[%clk 0:02:17.5]} 18. Bxe3
{[%clk 0:01:43.2]} 18... dxe3 {[%clk 0:02:16.9]} 19. Rh3 {[%clk 0:01:42.3]}
19... Qb6 {[%clk 0:02:09.1]} 20. Qxe3 {[%clk 0:01:38.6]} 20... Qb2 {[%clk
0:02:07.4]} 21. Qc1 {[%clk 0:01:38.2]} 21... Qb6 {[%clk 0:02:04.8]} 22. Rb1
{[%clk 0:01:34.5]} 22... Qa7 {[%clk 0:02:03.1]} 23. Qe3 {[%clk 0:01:33.2]} 23...
Qa6 {[%clk 0:01:55]} 24. Qc5+ {[%clk 0:01:27.9]} 24... Ke8 {[%clk 0:01:54.4]}
25. Nc3 {[%clk 0:01:16.8]} 25... Na7 {[%clk 0:01:40.9]} 26. Rb6 {[%clk
0:01:14.4]} 26... Rc8 {[%clk 0:01:38.5]} 27. Qd6 {[%clk 0:00:41.7]} 27... Nb5
{[%clk 0:01:20.4]} 28. Nxb5 {[%clk 0:00:41.5]} 28... Qa8 {[%clk 0:01:17.3]} 29.
Nc7+ {[%clk 0:00:41.7]} 29... Rxc7 {[%clk 0:01:12.7]} 30. Qxc7 {[%clk
0:00:42.6]} 30... Ke7 {[%clk 0:01:12.2]} 31. Rd6 {[%clk 0:00:42.8]} 31... Rd8
{[%clk 0:01:11.9]} 32. c5 {[%clk 0:00:41.8]} 32... Qa7 {[%clk 0:00:59.5]} 33.
Bb5 {[%clk 0:00:39.4]} 33... a4 {[%clk 0:00:55.3]} 34. Rxd7+ {[%clk 0:00:38.6]}
34... Rxd7 {[%clk 0:00:55.3]} 35. Qxd7+ {[%clk 0:00:38.8]} 1-0

[Event "Early-Titled-Tuesday-Blitz-June-18-2024"]
[Site "Chess.com"]
[Date "2024.06.18"]
[Round "3"]
[White "jaramsdal"]
[Black "ozates"]
[Result "0-1"]
[WhiteElo "2423"]
[BlackElo "2628"]
[TimeControl "180+1"]
[EndTime "8:28:19 PDT"]
[Termination "ozates won on time"]

1. e4 {[%clk 0:03:00.9]} 1... e5 {[%clk 0:02:56.2]} 2. Nf3 {[%clk 0:02:56.8]}
2... Nc6 {[%clk 0:02:56.5]} 3. Bb5 {[%clk 0:02:56.3]} 3... a6 {[%clk 0:02:55.4]}
4. Bxc6 {[%clk 0:02:52]} 4... dxc6 {[%clk 0:02:56.3]} 5. O-O {[%clk 0:02:48.4]}
5... Ne7 {[%clk 0:02:52]} 6. Nc3 {[%clk 0:02:39.3]} 6... Ng6 {[%clk 0:02:51.9]}
7. d4 {[%clk 0:02:38.5]} 7... exd4 {[%clk 0:02:51.2]} 8. Qxd4 {[%clk 0:02:36.9]}
8... Qxd4 {[%clk 0:02:48.5]} 9. Nxd4 {[%clk 0:02:37.8]} 9... Bd7 {[%clk
0:02:48.8]} 10. g3 {[%clk 0:02:17.5]} 10... O-O-O {[%clk 0:02:48.2]} 11. Nb3
{[%clk 0:01:57.2]} 11... c5 {[%clk 0:02:46.4]} 12. h4 {[%clk 0:01:44.6]} 12...
b6 {[%clk 0:02:46]} 13. h5 {[%clk 0:01:42.7]} 13... Ne5 {[%clk 0:02:46.1]} 14.
Bf4 {[%clk 0:01:41.3]} 14... Nc4 {[%clk 0:02:42.7]} 15. Nd5 {[%clk 0:01:32.7]}
15... Bd6 {[%clk 0:02:37.9]} 16. Bxd6 {[%clk 0:01:31.8]} 16... Nxd6 {[%clk
0:02:38.8]} 17. f3 {[%clk 0:01:20.6]} 17... Rhe8 {[%clk 0:02:36]} 18. Rf2 {[%clk
0:01:03]} 18... f5 {[%clk 0:02:30.7]} 19. exf5 {[%clk 0:00:58.4]} 19... Nxf5
{[%clk 0:02:29.3]} 20. g4 {[%clk 0:00:55.4]} 20... Bc6 {[%clk 0:02:24.6]} 21.
Nxb6+ {[%clk 0:00:31]} 21... cxb6 {[%clk 0:02:23.4]} 22. gxf5 {[%clk 0:00:31.9]}
22... Re5 {[%clk 0:02:23.1]} 23. a4 {[%clk 0:00:14.4]} 23... Rxf5 {[%clk
0:02:22.5]} 24. a5 {[%clk 0:00:15]} 24... b5 {[%clk 0:02:22.9]} 25. Re1 {[%clk
0:00:11.2]} 25... c4 {[%clk 0:02:22.3]} 26. Nd2 {[%clk 0:00:08.7]} 26... Rxh5
{[%clk 0:02:22.9]} 27. Re7 {[%clk 0:00:06.9]} 27... Rd7 {[%clk 0:02:22.9]} 28.
Rxd7 {[%clk 0:00:05.3]} 28... Kxd7 {[%clk 0:02:23.8]} 29. Ne4 {[%clk 0:00:06.1]}
29... Bxe4 {[%clk 0:02:15.1]} 30. fxe4 {[%clk 0:00:07]} 30... Re5 {[%clk
0:02:15.5]} 31. Rf7+ {[%clk 0:00:06.9]} 31... Re7 {[%clk 0:02:15.7]} 32. Rf4
{[%clk 0:00:07.2]} 32... g5 {[%clk 0:02:15.6]} 33. Rg4 {[%clk 0:00:06.6]} 33...
Re5 {[%clk 0:02:16.1]} 34. Kf2 {[%clk 0:00:03.8]} 34... h5 {[%clk 0:02:16.1]}
35. Rg1 {[%clk 0:00:04.3]} 35... Ke6 {[%clk 0:02:12.2]} 36. Ke3 {[%clk
0:00:04.8]} 36... Kf6 {[%clk 0:02:09.9]} 37. Kd4 {[%clk 0:00:05.3]} 37... g4
{[%clk 0:02:08.3]} 38. Rf1+ {[%clk 0:00:05.7]} 38... Ke6 {[%clk 0:02:08.8]} 39.
Rf8 {[%clk 0:00:06.4]} 39... Rg5 {[%clk 0:02:08.4]} 40. Re8+ {[%clk 0:00:06.8]}
40... Kd7 {[%clk 0:02:07]} 41. Ra8 {[%clk 0:00:07.7]} 41... g3 {[%clk
0:02:07.1]} 42. Ra7+ {[%clk 0:00:07.7]} 42... Ke8 {[%clk 0:02:06.7]} 43. Rxa6
{[%clk 0:00:08.6]} 43... g2 {[%clk 0:02:06.9]} 44. Ra8+ {[%clk 0:00:08.2]} 44...
Kd7 {[%clk 0:02:07]} 45. Ra7+ {[%clk 0:00:09.1]} 45... Kc8 {[%clk 0:02:06.6]}
46. Ra8+ {[%clk 0:00:05.8]} 46... Kb7 {[%clk 0:02:06.7]} 47. Rh8 {[%clk
0:00:03]} 47... g1=Q+ {[%clk 0:02:06.9]} 0-1

[Event "Early-Titled-Tuesday-Blitz-June-18-2024"]
[Site "Chess.com"]
[Date "2024.06.18"]
[Round "3"]
[White "PedroGil25"]
[Black "NigiriSushies"]
[Result "1-0"]
[WhiteElo "2567"]
[BlackElo "2300"]
[TimeControl "180+1"]
[EndTime "8:28:21 PDT"]
[Termination "PedroGil25 won by checkmate"]

1. c4 {[%clk 0:03:00.9]} 1... Nf6 {[%clk 0:02:57.7]} 2. Nf3 {[%clk 0:03:00.7]}
2... c6 {[%clk 0:02:57.8]} 3. b3 {[%clk 0:02:59.9]} 3... d5 {[%clk 0:02:57.2]}
4. Bb2 {[%clk 0:03:00.3]} 4... g6 {[%clk 0:02:54.4]} 5. d3 {[%clk 0:02:59.7]}
5... Bg7 {[%clk 0:02:54.6]} 6. Nbd2 {[%clk 0:02:59]} 6... O-O {[%clk 0:02:54.9]}
7. g3 {[%clk 0:02:58.4]} 7... a5 {[%clk 0:02:53.7]} 8. a3 {[%clk 0:02:57.6]}
8... a4 {[%clk 0:02:50.8]} 9. b4 {[%clk 0:02:54.2]} 9... Be6 {[%clk 0:02:23.2]}
10. Rc1 {[%clk 0:02:50.6]} 10... Nbd7 {[%clk 0:02:16.7]} 11. Bg2 {[%clk
0:02:38.8]} 11... h6 {[%clk 0:02:06.2]} 12. O-O {[%clk 0:02:17.2]} 12... Nb6
{[%clk 0:01:59.8]} 13. Qc2 {[%clk 0:02:01.5]} 13... Kh7 {[%clk 0:01:01.7]} 14.
Rfd1 {[%clk 0:01:55.3]} 14... Bf5 {[%clk 0:00:44.9]} 15. e4 {[%clk 0:01:54]}
15... dxe4 {[%clk 0:00:44.5]} 16. dxe4 {[%clk 0:01:54.9]} 16... Bg4 {[%clk
0:00:41.6]} 17. h3 {[%clk 0:01:54.3]} 17... Be6 {[%clk 0:00:39.2]} 18. Ne5
{[%clk 0:01:51.2]} 18... Qc7 {[%clk 0:00:36.8]} 19. c5 {[%clk 0:01:49]} 19...
Nc8 {[%clk 0:00:30.7]} 20. Ndc4 {[%clk 0:01:48.8]} 20... Nd7 {[%clk 0:00:15]}
21. Nxd7 {[%clk 0:01:46.5]} 21... Bxd7 {[%clk 0:00:15.9]} 22. Bxg7 {[%clk
0:01:46.1]} 22... Kxg7 {[%clk 0:00:16.1]} 23. f4 {[%clk 0:01:44.7]} 23... Be6
{[%clk 0:00:15.7]} 24. Qc3+ {[%clk 0:01:43.9]} 24... Kh7 {[%clk 0:00:15.5]} 25.
Kh2 {[%clk 0:01:38.6]} 25... Bxc4 {[%clk 0:00:15.8]} 26. Qxc4 {[%clk 0:01:38.6]}
26... Na7 {[%clk 0:00:16.5]} 27. Rd3 {[%clk 0:01:30.7]} 27... Nb5 {[%clk
0:00:16.8]} 28. Rcd1 {[%clk 0:01:30.9]} 28... Kg8 {[%clk 0:00:07.7]} 29. f5
{[%clk 0:01:30.2]} 29... gxf5 {[%clk 0:00:06.2]} 30. exf5 {[%clk 0:01:31.1]}
30... Rad8 {[%clk 0:00:06.6]} 31. Qg4+ {[%clk 0:01:28.2]} 31... Kh7 {[%clk
0:00:06.4]} 32. f6 {[%clk 0:01:27.2]} 32... exf6 {[%clk 0:00:04.3]} 33. Be4+
{[%clk 0:01:27.2]} 33... Kh8 {[%clk 0:00:04]} 34. Qf5 {[%clk 0:01:25.7]} 34...
Kg7 {[%clk 0:00:01.3]} 35. Qh7# {[%clk 0:01:25.7]} 1-0

[Event "Early-Titled-Tuesday-Blitz-June-18-2024"]
[Site "Chess.com"]
[Date "2024.06.18"]
[Round "3"]
[White "eragon02"]
[Black "Louis-Paulsen-Fan"]
[Result "0-1"]
[WhiteElo "2616"]
[BlackElo "2443"]
[TimeControl "180+1"]
[EndTime "8:28:28 PDT"]
[Termination "Louis-Paulsen-Fan won on time"]

1. d4 {[%clk 0:03:00]} 1... d5 {[%clk 0:02:59.7]} 2. c4 {[%clk 0:02:59.2]} 2...
e6 {[%clk 0:03:00.3]} 3. Nc3 {[%clk 0:02:56.8]} 3... c5 {[%clk 0:03:00.7]} 4.
cxd5 {[%clk 0:02:52.8]} 4... exd5 {[%clk 0:03:01.6]} 5. Nf3 {[%clk 0:02:52.2]}
5... Nc6 {[%clk 0:03:01.7]} 6. e3 {[%clk 0:02:29.9]} 6... Nf6 {[%clk 0:03:00.3]}
7. Be2 {[%clk 0:02:18.3]} 7... Bd6 {[%clk 0:02:46.7]} 8. dxc5 {[%clk 0:02:16.6]}
8... Bxc5 {[%clk 0:02:46.6]} 9. O-O {[%clk 0:02:15.4]} 9... O-O {[%clk
0:02:46.1]} 10. b3 {[%clk 0:02:15.5]} 10... Bg4 {[%clk 0:02:32.3]} 11. Bb2
{[%clk 0:02:14.4]} 11... Re8 {[%clk 0:02:32]} 12. h3 {[%clk 0:02:14.2]} 12...
Bh5 {[%clk 0:02:31.7]} 13. Nb5 {[%clk 0:02:14]} 13... Ne4 {[%clk 0:02:28.5]} 14.
Nbd4 {[%clk 0:02:08.1]} 14... Bg6 {[%clk 0:02:17.2]} 15. Rc1 {[%clk 0:02:07]}
15... Qb6 {[%clk 0:02:15.5]} 16. Nxc6 {[%clk 0:01:37.9]} 16... bxc6 {[%clk
0:02:16.4]} 17. Ne5 {[%clk 0:01:37.3]} 17... Bxe3 {[%clk 0:01:38.3]} 18. fxe3
{[%clk 0:01:34.4]} 18... Qxe3+ {[%clk 0:01:38.5]} 19. Kh2 {[%clk 0:01:30.7]}
19... Qg3+ {[%clk 0:01:34.7]} 20. Kh1 {[%clk 0:01:23.2]} 20... Nf2+ {[%clk
0:01:30.6]} 21. Rxf2 {[%clk 0:01:22.6]} 21... Qxf2 {[%clk 0:01:31.2]} 22. Bf3
{[%clk 0:01:15.2]} 22... Be4 {[%clk 0:01:22.7]} 23. Qd4 {[%clk 0:01:10]} 23...
Qg3 {[%clk 0:01:04.2]} 0-1

[Event "Early-Titled-Tuesday-Blitz-June-18-2024"]
[Site "Chess.com"]
[Date "2024.06.18"]
[Round "3"]
[White "carloseduar100"]
[Black "LangesNasenhaar"]
[Result "0-1"]
[WhiteElo "2254"]
[BlackElo "2496"]
[TimeControl "180+1"]
[EndTime "8:28:28 PDT"]
[Termination "LangesNasenhaar won by resignation"]

1. d4 {[%clk 0:03:00.9]} 1... g6 {[%clk 0:02:59.8]} 2. Nf3 {[%clk 0:03:00]} 2...
Bg7 {[%clk 0:03:00.2]} 3. c3 {[%clk 0:02:59.1]} 3... d6 {[%clk 0:02:59.4]} 4. e4
{[%clk 0:02:58.7]} 4... Nc6 {[%clk 0:02:58]} 5. Bc4 {[%clk 0:02:56.7]} 5... Nf6
{[%clk 0:02:58.1]} 6. Nbd2 {[%clk 0:02:55.6]} 6... O-O {[%clk 0:02:58.6]} 7. O-O
{[%clk 0:02:54.5]} 7... a6 {[%clk 0:02:58.4]} 8. h3 {[%clk 0:02:52.1]} 8... e5
{[%clk 0:02:58.5]} 9. Re1 {[%clk 0:02:48.2]} 9... exd4 {[%clk 0:02:44.5]} 10.
cxd4 {[%clk 0:02:47.9]} 10... d5 {[%clk 0:02:43]} 11. Bb3 {[%clk 0:02:41.5]}
11... dxe4 {[%clk 0:02:39.9]} 12. Nxe4 {[%clk 0:02:41.9]} 12... Nxe4 {[%clk
0:02:40.6]} 13. Rxe4 {[%clk 0:02:41.4]} 13... Bf5 {[%clk 0:02:41.3]} 14. Rh4
{[%clk 0:02:36.5]} 14... Qd7 {[%clk 0:02:09.4]} 15. Bh6 {[%clk 0:02:34.4]} 15...
Bxh6 {[%clk 0:01:58.9]} 16. Rxh6 {[%clk 0:02:35.3]} 16... Rad8 {[%clk
0:01:54.6]} 17. Ne5 {[%clk 0:02:09.1]} 17... Nxe5 {[%clk 0:01:49.2]} 18. dxe5
{[%clk 0:02:08.9]} 18... Qxd1+ {[%clk 0:01:48.9]} 19. Rxd1 {[%clk 0:02:09.6]}
19... Rxd1+ {[%clk 0:01:46.6]} 20. Bxd1 {[%clk 0:02:10.2]} 20... Rd8 {[%clk
0:01:39.8]} 21. Bb3 {[%clk 0:02:10.2]} 21... Be6 {[%clk 0:01:31.4]} 22. Bxe6
{[%clk 0:02:05.5]} 22... fxe6 {[%clk 0:01:31.5]} 23. Rh4 {[%clk 0:02:06]} 23...
Rd1+ {[%clk 0:01:25.9]} 24. Kh2 {[%clk 0:02:05.7]} 24... Rd2 {[%clk 0:01:24.8]}
25. Rb4 {[%clk 0:02:06.2]} 25... b5 {[%clk 0:01:25.1]} 26. Kg3 {[%clk
0:02:05.1]} 26... c5 {[%clk 0:01:14.2]} 27. Rb3 {[%clk 0:02:05.3]} 27... Kf7
{[%clk 0:01:04.7]} 28. Kf3 {[%clk 0:02:05.2]} 28... c4 {[%clk 0:01:02.9]} 29.
Ra3 {[%clk 0:02:03.7]} 29... Rxb2 {[%clk 0:00:54.3]} 30. Rxa6 {[%clk 0:02:04.1]}
30... c3 {[%clk 0:00:51.9]} 31. Ke3 {[%clk 0:02:02.6]} 31... b4 {[%clk
0:00:50.4]} 32. g4 {[%clk 0:01:51]} 32... Rb1 {[%clk 0:00:45.5]} 33. Rc6 {[%clk
0:01:47]} 33... g5 {[%clk 0:00:35.3]} 34. a3 {[%clk 0:01:38]} 34... bxa3 {[%clk
0:00:34.5]} 35. Rxc3 {[%clk 0:01:36.5]} 35... a2 {[%clk 0:00:34.7]} 36. Rc7+
{[%clk 0:01:35.3]} 36... Ke8 {[%clk 0:00:32]} 37. Rxh7 {[%clk 0:01:34.7]} 37...
a1=Q {[%clk 0:00:31]} 38. Rh8+ {[%clk 0:01:30]} 38... Kf7 {[%clk 0:00:30.9]} 39.
Rh7+ {[%clk 0:01:30]} 39... Kg8 {[%clk 0:00:30.8]} 40. Rh6 {[%clk 0:01:24.4]}
40... Qxe5+ {[%clk 0:00:29.7]} 41. Kf3 {[%clk 0:01:25.1]} 41... Rb3+ {[%clk
0:00:28.6]} 42. Kg2 {[%clk 0:01:25]} 42... Qe4+ {[%clk 0:00:28.6]} 43. Kh2
{[%clk 0:01:19.6]} 43... Qf4+ {[%clk 0:00:28.6]} 44. Kg2 {[%clk 0:01:19.8]}
44... Qf3+ {[%clk 0:00:28.8]} 0-1

[Event "Early-Titled-Tuesday-Blitz-June-18-2024"]
[Site "Chess.com"]
[Date "2024.06.18"]
[Round "3"]
[White "luachess1"]
[Black "Larina_Maria"]
[Result "0-1"]
[WhiteElo "1910"]
[BlackElo "2362"]
[TimeControl "180+1"]
[EndTime "8:28:28 PDT"]
[Termination "Larina_Maria won on time"]

1. d4 {[%clk 0:03:00.9]} 1... f5 {[%clk 0:02:59.6]} 2. Bf4 {[%clk 0:02:57]} 2...
Nf6 {[%clk 0:02:59.1]} 3. Nf3 {[%clk 0:02:56.5]} 3... d6 {[%clk 0:02:58.9]} 4.
e3 {[%clk 0:02:55]} 4... e6 {[%clk 0:02:58.5]} 5. c4 {[%clk 0:02:52.9]} 5... g6
{[%clk 0:02:58.1]} 6. Nc3 {[%clk 0:02:52.4]} 6... Bg7 {[%clk 0:02:58]} 7. Be2
{[%clk 0:02:51.7]} 7... O-O {[%clk 0:02:58.2]} 8. O-O {[%clk 0:02:47.3]} 8... a6
{[%clk 0:02:55.8]} 9. Re1 {[%clk 0:02:40.7]} 9... h6 {[%clk 0:02:46.4]} 10. h3
{[%clk 0:02:37.7]} 10... g5 {[%clk 0:02:43.4]} 11. Bh2 {[%clk 0:02:37.5]} 11...
Qe8 {[%clk 0:02:36.4]} 12. Nd2 {[%clk 0:02:23.3]} 12... Qg6 {[%clk 0:02:21.7]}
13. Qc2 {[%clk 0:02:11.5]} 13... Nc6 {[%clk 0:02:18.9]} 14. a3 {[%clk
0:02:05.3]} 14... Ne7 {[%clk 0:02:15.8]} 15. b4 {[%clk 0:02:04.4]} 15... g4
{[%clk 0:02:10.3]} 16. hxg4 {[%clk 0:02:01.4]} 16... Nxg4 {[%clk 0:02:09.5]} 17.
Bg3 {[%clk 0:01:54.8]} 17... Nf6 {[%clk 0:01:54.9]} 18. Bf3 {[%clk 0:01:40.3]}
18... Nh5 {[%clk 0:01:51.4]} 19. Bh2 {[%clk 0:01:33.6]} 19... Qg5 {[%clk
0:01:38.9]} 20. Qd1 {[%clk 0:01:25.1]} 20... Nf6 {[%clk 0:01:34.2]} 21. Bf4
{[%clk 0:01:21.8]} 21... Qg6 {[%clk 0:01:33.8]} 22. b5 {[%clk 0:00:48.1]} 22...
h5 {[%clk 0:01:29.1]} 23. Nf1 {[%clk 0:00:20.3]} 23... h4 {[%clk 0:01:28.2]} 24.
a4 {[%clk 0:00:19.8]} 24... Ng4 {[%clk 0:01:26.3]} 25. Bxg4 {[%clk 0:00:16.2]}
25... fxg4 {[%clk 0:01:27.2]} 26. Nh2 {[%clk 0:00:12]} 26... e5 {[%clk
0:01:13.3]} 27. dxe5 {[%clk 0:00:10.4]} 27... dxe5 {[%clk 0:01:13.4]} 28. Bxe5
{[%clk 0:00:02.1]} 28... Bxe5 {[%clk 0:01:12.1]} 0-1